[Event "*** Titled Tuesday Blitz"]
[Site "Chess.com"]
[Date "2020.05.12"]
[Round "6"]
[White "allvim"]
[Black "MisiekZielony"]
[Result "0-1"]
[WhiteElo "2264"]
[BlackElo "2123"]
[TimeControl "180+1"]
[EndTime "11:06:41 PDT"]
[Termination "MisiekZielony won by resignation"]

1. e4 {[%clk 0:03:00.9]} 1... Nf6 {[%clk 0:02:59.6]} 2. Nc3 {[%clk 0:03:00.6]}
2... d5 {[%clk 0:02:59.1]} 3. exd5 {[%clk 0:03:01.5]} 3... Nxd5 {[%clk 0:02:59]}
4. Bc4 {[%clk 0:03:02.2]} 4... Nb6 {[%clk 0:02:59]} 5. Bb3 {[%clk 0:03:02.8]}
5... Nc6 {[%clk 0:02:59.2]} 6. Nge2 {[%clk 0:03:02.3]} 6... e6 {[%clk
0:02:58.9]} 7. Ng3 {[%clk 0:03:01.6]} 7... Na5 {[%clk 0:02:49.2]} 8. O-O {[%clk
0:03:00.7]} 8... Nxb3 {[%clk 0:02:48]} 9. axb3 {[%clk 0:03:01.6]} 9... g6 {[%clk
0:02:38.9]} 10. d3 {[%clk 0:01:58.2]} 10... Bg7 {[%clk 0:02:38.1]} 11. Re1
{[%clk 0:01:54.8]} 11... O-O {[%clk 0:02:36.4]} 12. Be3 {[%clk 0:01:55]} 12...
Nd5 {[%clk 0:02:24]} 13. Nxd5 {[%clk 0:01:53.8]} 13... Qxd5 {[%clk 0:02:23.8]}
14. c3 {[%clk 0:01:44.9]} 14... c5 {[%clk 0:02:20.7]} 15. Ne4 {[%clk 0:01:39.4]}
15... b6 {[%clk 0:02:18.8]} 16. Bh6 {[%clk 0:01:39.3]} 16... Bb7 {[%clk
0:02:06]} 17. Bxg7 {[%clk 0:01:38.5]} 17... Kxg7 {[%clk 0:02:05.6]} 18. Qf3
{[%clk 0:01:02.9]} 18... f6 {[%clk 0:01:53.1]} 19. Re3 {[%clk 0:00:45]} 19... e5
{[%clk 0:01:29.6]} 20. Rae1 {[%clk 0:00:41.8]} 20... Qxb3 {[%clk 0:01:10.5]} 21.
Qh3 {[%clk 0:00:35.3]} 21... Bxe4 {[%clk 0:01:09.2]} 22. Rxe4 {[%clk 0:00:30]}
22... Rf7 {[%clk 0:00:40.1]} 23. Rh4 {[%clk 0:00:29.3]} 23... Rh8 {[%clk
0:00:39.8]} 24. Qe3 {[%clk 0:00:20.6]} 24... h5 {[%clk 0:00:38.2]} 25. g4 {[%clk
0:00:15.9]} 25... Qe6 {[%clk 0:00:32.8]} 26. gxh5 {[%clk 0:00:15.2]} 26... g5
{[%clk 0:00:32.8]} 27. Rh3 {[%clk 0:00:12.2]} 27... Qg4+ {[%clk 0:00:32.3]} 28.
Qg3 {[%clk 0:00:11.7]} 28... Qxg3+ {[%clk 0:00:31.4]} 29. Rxg3 {[%clk
0:00:12.6]} 29... Rxh5 {[%clk 0:00:31.1]} 30. Re4 {[%clk 0:00:08.4]} 30... Kf8
{[%clk 0:00:28.1]} 31. Kg2 {[%clk 0:00:07.9]} 31... Rd7 {[%clk 0:00:27.9]} 32.
Rf3 {[%clk 0:00:07.1]} 32... Ke7 {[%clk 0:00:26.6]} 33. d4 {[%clk 0:00:07]}
33... cxd4 {[%clk 0:00:26.5]} 34. cxd4 {[%clk 0:00:07.9]} 34... Rxd4 {[%clk
0:00:26.8]} 35. Rxd4 {[%clk 0:00:08.5]} 35... exd4 {[%clk 0:00:26.4]} 36. Ra3
{[%clk 0:00:09.4]} 36... Kd6 {[%clk 0:00:24.5]} 37. Rxa7 {[%clk 0:00:09.2]}
37... Rh4 {[%clk 0:00:24.9]} 38. Rb7 {[%clk 0:00:08.3]} 38... Kc6 {[%clk
0:00:24.6]} 39. Rf7 {[%clk 0:00:08.9]} 39... Rf4 {[%clk 0:00:24.6]} 40. Rf8
{[%clk 0:00:08.1]} 40... Kc5 {[%clk 0:00:24.7]} 41. Rc8+ {[%clk 0:00:08.2]}
41... Kb4 {[%clk 0:00:25]} 42. Rc6 {[%clk 0:00:07.4]} 42... b5 {[%clk
0:00:25.5]} 43. Kf1 {[%clk 0:00:07.2]} 43... Kb3 {[%clk 0:00:25.7]} 44. Ke2
{[%clk 0:00:07.7]} 44... b4 {[%clk 0:00:25.4]} 45. Kd3 {[%clk 0:00:06.4]} 45...
Rxf2 {[%clk 0:00:25.3]} 46. Kxd4 {[%clk 0:00:06.4]} 46... Kxb2 {[%clk
0:00:25.3]} 47. Rxf6 {[%clk 0:00:07]} 47... Rxf6 {[%clk 0:00:25]} 0-1

[Event "*** Titled Tuesday Blitz"]
[Site "Chess.com"]
[Date "2020.05.12"]
[Round "6"]
[White "WildBizon"]
[Black "gvanna"]
[Result "1-0"]
[WhiteElo "2687"]
[BlackElo "2476"]
[TimeControl "180+1"]
[EndTime "11:06:42 PDT"]
[Termination "WildBizon won by resignation"]

1. e4 {[%clk 0:03:00.9]} 1... c5 {[%clk 0:02:59.8]} 2. Nf3 {[%clk 0:03:00.3]}
2... Nc6 {[%clk 0:03:00.1]} 3. d4 {[%clk 0:02:58.8]} 3... cxd4 {[%clk
0:03:00.4]} 4. Nxd4 {[%clk 0:02:59.7]} 4... g6 {[%clk 0:03:00.9]} 5. c4 {[%clk
0:02:59.4]} 5... Nf6 {[%clk 0:03:00.9]} 6. Nc3 {[%clk 0:02:59.5]} 6... Nxd4
{[%clk 0:03:00.5]} 7. Qxd4 {[%clk 0:02:59.2]} 7... d6 {[%clk 0:03:00.7]} 8. Bg5
{[%clk 0:02:59.2]} 8... Bg7 {[%clk 0:03:00.8]} 9. f3 {[%clk 0:02:57.9]} 9... O-O
{[%clk 0:03:00.6]} 10. Qd2 {[%clk 0:02:58.5]} 10... a5 {[%clk 0:03:00]} 11. Rc1
{[%clk 0:02:55.7]} 11... a4 {[%clk 0:03:00.1]} 12. Bd3 {[%clk 0:02:55]} 12...
Be6 {[%clk 0:02:59.7]} 13. Nb5 {[%clk 0:02:42.5]} 13... Nd7 {[%clk 0:02:53]} 14.
h4 {[%clk 0:02:33.5]} 14... h5 {[%clk 0:02:45.7]} 15. Bh6 {[%clk 0:02:26.1]}
15... Nc5 {[%clk 0:02:40]} 16. Be2 {[%clk 0:02:24.9]} 16... Qb6 {[%clk
0:02:24.1]} 17. Bxg7 {[%clk 0:02:20.5]} 17... Kxg7 {[%clk 0:02:23.5]} 18. Qc3+
{[%clk 0:02:04.6]} 18... f6 {[%clk 0:02:22.3]} 19. Qd2 {[%clk 0:01:53.4]} 19...
Bd7 {[%clk 0:02:18.7]} 20. Nc3 {[%clk 0:01:52.1]} 20... Be6 {[%clk 0:02:12.2]}
21. g4 {[%clk 0:01:44.5]} 21... hxg4 {[%clk 0:02:07.7]} 22. fxg4 {[%clk
0:01:45.4]} 22... Rh8 {[%clk 0:02:07.5]} 23. h5 {[%clk 0:01:36.1]} 23... gxh5
{[%clk 0:02:07]} 24. gxh5 {[%clk 0:01:23.2]} 24... Rag8 {[%clk 0:01:54.4]} 25.
h6+ {[%clk 0:01:15.2]} 25... Kh7 {[%clk 0:01:53.9]} 26. Nd5 {[%clk 0:00:46.3]}
26... Qd8 {[%clk 0:01:32.7]} 27. Nf4 {[%clk 0:00:32]} 27... Qd7 {[%clk
0:01:29.1]} 28. Bd3 {[%clk 0:00:30.4]} 28... Rg5 {[%clk 0:01:22.2]} 29. Kd1
{[%clk 0:00:20.2]} 29... Rhg8 {[%clk 0:01:21.3]} 30. Kc2 {[%clk 0:00:20.6]}
30... b5 {[%clk 0:01:11.2]} 31. cxb5 {[%clk 0:00:19.2]} 31... Bxa2 {[%clk
0:01:11.3]} 32. e5+ {[%clk 0:00:17]} 32... Kh8 {[%clk 0:01:01.3]} 33. h7 {[%clk
0:00:16.5]} 33... R8g7 {[%clk 0:01:01.3]} 34. exf6 {[%clk 0:00:16.4]} 34... exf6
{[%clk 0:01:01.2]} 35. Rce1 {[%clk 0:00:15.7]} 35... Qf7 {[%clk 0:00:50.4]} 36.
Qc3 {[%clk 0:00:15.9]} 36... Nxd3 {[%clk 0:00:35.7]} 37. Qxd3 {[%clk 0:00:15.7]}
37... Rc5+ {[%clk 0:00:30.7]} 38. Kd2 {[%clk 0:00:15.2]} 38... Rg4 {[%clk
0:00:19.7]} 39. Rhf1 {[%clk 0:00:14]} 39... Qxh7 {[%clk 0:00:16]} 40. Rh1 {[%clk
0:00:14.1]} 40... Rh4 {[%clk 0:00:15.5]} 41. Rxh4 {[%clk 0:00:14.3]} 41... Qxh4
{[%clk 0:00:15.5]} 42. Ng6+ {[%clk 0:00:14.8]} 42... Kg7 {[%clk 0:00:15.7]} 43.
Nxh4 {[%clk 0:00:15.7]} 43... Rg5 {[%clk 0:00:10.9]} 44. Re7+ {[%clk 0:00:14.8]}
44... Kf8 {[%clk 0:00:10.9]} 45. Ra7 {[%clk 0:00:13.6]} 45... Bb3 {[%clk
0:00:09.6]} 46. Qxd6+ {[%clk 0:00:13.4]} 1-0

[Event "*** Titled Tuesday Blitz"]
[Site "Chess.com"]
[Date "2020.05.12"]
[Round "6"]
[White "Kaliopa"]
[Black "AndriiTop"]
[Result "1-0"]
[WhiteElo "2117"]
[BlackElo "2339"]
[TimeControl "180+1"]
[EndTime "11:06:42 PDT"]
[Termination "Kaliopa won by checkmate"]

1. e4 {[%clk 0:02:57.1]} 1... c6 {[%clk 0:02:59.7]} 2. d4 {[%clk 0:02:56.6]}
2... d5 {[%clk 0:03:00.6]} 3. e5 {[%clk 0:02:57.1]} 3... c5 {[%clk 0:03:00.7]}
4. dxc5 {[%clk 0:02:54.6]} 4... Nc6 {[%clk 0:02:55.3]} 5. Nf3 {[%clk 0:02:52.9]}
5... Bg4 {[%clk 0:02:53.5]} 6. Be2 {[%clk 0:02:50.2]} 6... e6 {[%clk 0:02:50]}
7. a3 {[%clk 0:02:27.5]} 7... Bxc5 {[%clk 0:02:48.4]} 8. b4 {[%clk 0:02:26.4]}
8... Bb6 {[%clk 0:02:48.4]} 9. Bb2 {[%clk 0:02:26.3]} 9... Nge7 {[%clk
0:02:48.5]} 10. O-O {[%clk 0:02:25.1]} 10... O-O {[%clk 0:02:47.7]} 11. Nbd2
{[%clk 0:02:23.5]} 11... Rc8 {[%clk 0:02:35.4]} 12. c4 {[%clk 0:02:22.2]} 12...
d4 {[%clk 0:02:21.3]} 13. Nb3 {[%clk 0:01:23.9]} 13... Bxf3 {[%clk 0:02:19.7]}
14. Bxf3 {[%clk 0:01:24.4]} 14... Nxe5 {[%clk 0:02:20]} 15. c5 {[%clk
0:01:23.3]} 15... Bc7 {[%clk 0:01:54.2]} 16. Bxb7 {[%clk 0:01:21.4]} 16... Rb8
{[%clk 0:01:51.2]} 17. Be4 {[%clk 0:01:20.7]} 17... d3 {[%clk 0:01:23]} 18. Bxe5
{[%clk 0:00:46.2]} 18... Bxe5 {[%clk 0:01:21.5]} 19. Rb1 {[%clk 0:00:47.1]}
19... Qc7 {[%clk 0:01:17.2]} 20. Qxd3 {[%clk 0:00:37.2]} 20... f5 {[%clk
0:01:12.8]} 21. Bf3 {[%clk 0:00:35.8]} 21... Bxh2+ {[%clk 0:01:12.4]} 22. Kh1
{[%clk 0:00:34.9]} 22... Be5 {[%clk 0:01:10.7]} 23. Rfe1 {[%clk 0:00:32]} 23...
Rbd8 {[%clk 0:01:04.3]} 24. Qe2 {[%clk 0:00:29]} 24... Ng6 {[%clk 0:01:03.9]}
25. Na5 {[%clk 0:00:21.5]} 25... Qe7 {[%clk 0:00:37.7]} 26. g3 {[%clk
0:00:19.2]} 26... f4 {[%clk 0:00:25.4]} 27. Nc6 {[%clk 0:00:18.9]} 27... Rf5
{[%clk 0:00:24.8]} 28. Nxe7+ {[%clk 0:00:18.3]} 28... Nxe7 {[%clk 0:00:25.1]}
29. g4 {[%clk 0:00:17.3]} 29... Rg5 {[%clk 0:00:24.3]} 30. Qxe5 {[%clk
0:00:16.5]} 30... Rxe5 {[%clk 0:00:23.1]} 31. Rxe5 {[%clk 0:00:17.4]} 31... Kf7
{[%clk 0:00:24]} 32. Rbe1 {[%clk 0:00:16.7]} 32... Rd3 {[%clk 0:00:23.9]} 33.
Kg2 {[%clk 0:00:16.2]} 33... Ng6 {[%clk 0:00:23.5]} 34. Rxe6 {[%clk 0:00:16.4]}
34... Nh4+ {[%clk 0:00:23.8]} 35. Kf1 {[%clk 0:00:15.7]} 35... Nxf3 {[%clk
0:00:24.1]} 36. Re7+ {[%clk 0:00:16]} 36... Kf8 {[%clk 0:00:23.6]} 37. Rxa7
{[%clk 0:00:16]} 37... Nxe1 {[%clk 0:00:21.1]} 38. Kxe1 {[%clk 0:00:16.9]} 38...
f3 {[%clk 0:00:20.5]} 39. c6 {[%clk 0:00:16.4]} 39... Rc3 {[%clk 0:00:14.3]} 40.
c7 {[%clk 0:00:16.3]} 40... Ke8 {[%clk 0:00:14.9]} 41. Ra8+ {[%clk 0:00:16]}
41... Kd7 {[%clk 0:00:15]} 42. c8=Q+ {[%clk 0:00:16.2]} 42... Rxc8 {[%clk
0:00:15.2]} 43. Rxc8 {[%clk 0:00:17.1]} 43... Kxc8 {[%clk 0:00:16.1]} 44. Kd2
{[%clk 0:00:18]} 44... g6 {[%clk 0:00:16.7]} 45. Ke3 {[%clk 0:00:17.9]} 45... h5
{[%clk 0:00:17.6]} 46. gxh5 {[%clk 0:00:18.8]} 46... gxh5 {[%clk 0:00:18.5]} 47.
Kxf3 {[%clk 0:00:19.4]} 47... h4 {[%clk 0:00:19.3]} 48. Kg4 {[%clk 0:00:19.4]}
48... h3 {[%clk 0:00:20.2]} 49. Kxh3 {[%clk 0:00:20.3]} 49... Kb7 {[%clk
0:00:19.8]} 50. Kg4 {[%clk 0:00:21.2]} 50... Ka6 {[%clk 0:00:20.4]} 51. f4
{[%clk 0:00:22.1]} 51... Kb5 {[%clk 0:00:21.3]} 52. f5 {[%clk 0:00:23]} 52...
Ka4 {[%clk 0:00:22.2]} 53. f6 {[%clk 0:00:23.6]} 53... Kb3 {[%clk 0:00:23.1]}
54. f7 {[%clk 0:00:24.5]} 54... Ka2 {[%clk 0:00:24]} 55. f8=Q {[%clk 0:00:25]}
55... Kb2 {[%clk 0:00:24.9]} 56. Qc5 {[%clk 0:00:25]} 56... Kb1 {[%clk
0:00:25.8]} 57. b5 {[%clk 0:00:25.9]} 57... Ka1 {[%clk 0:00:26.7]} 58. b6 {[%clk
0:00:26.4]} 58... Ka2 {[%clk 0:00:27.6]} 59. b7 {[%clk 0:00:26.9]} 59... Kb1
{[%clk 0:00:28.5]} 60. b8=Q+ {[%clk 0:00:27.1]} 60... Ka1 {[%clk 0:00:29.4]} 61.
Qc1+ {[%clk 0:00:27.1]} 61... Ka2 {[%clk 0:00:30.3]} 62. Qbb2# {[%clk
0:00:26.4]} 1-0

[Event "*** Titled Tuesday Blitz"]
[Site "Chess.com"]
[Date "2020.05.12"]
[Round "6"]
[White "SaySpade4VIP"]
[Black "BocharovD"]
[Result "1-0"]
[WhiteElo "2660"]
[BlackElo "2841"]
[TimeControl "180+1"]
[EndTime "11:06:43 PDT"]
[Termination "SaySpade4VIP won by checkmate"]

1. e4 {[%clk 0:03:00.9]} 1... c5 {[%clk 0:02:59.5]} 2. Nf3 {[%clk 0:02:57]} 2...
d6 {[%clk 0:02:59.3]} 3. Bb5+ {[%clk 0:02:53.9]} 3... Nd7 {[%clk 0:02:58.6]} 4.
O-O {[%clk 0:02:53.2]} 4... Nf6 {[%clk 0:02:58]} 5. Re1 {[%clk 0:02:51.2]} 5...
a6 {[%clk 0:02:57.9]} 6. Bd3 {[%clk 0:02:50.1]} 6... b5 {[%clk 0:02:54.3]} 7. c4
{[%clk 0:02:48.7]} 7... g5 {[%clk 0:02:53.6]} 8. Nxg5 {[%clk 0:02:38.8]} 8...
Ne5 {[%clk 0:02:53]} 9. Bf1 {[%clk 0:02:38.9]} 9... bxc4 {[%clk 0:02:50.1]} 10.
d4 {[%clk 0:02:39.1]} 10... cxd3 {[%clk 0:02:49.6]} 11. f4 {[%clk 0:02:39.2]}
11... Bg4 {[%clk 0:02:30.5]} 12. Qd2 {[%clk 0:02:28.1]} 12... Nc6 {[%clk
0:02:30.1]} 13. Qxd3 {[%clk 0:02:23.3]} 13... h6 {[%clk 0:02:26.3]} 14. Nf3
{[%clk 0:02:21.5]} 14... Bg7 {[%clk 0:02:24.1]} 15. Nbd2 {[%clk 0:02:11.9]}
15... Nb4 {[%clk 0:02:17.6]} 16. Qb1 {[%clk 0:01:57.7]} 16... O-O {[%clk
0:02:09.9]} 17. a3 {[%clk 0:01:55.8]} 17... Nc6 {[%clk 0:02:10]} 18. h3 {[%clk
0:01:47.2]} 18... Bc8 {[%clk 0:02:03.4]} 19. e5 {[%clk 0:01:41.1]} 19... Nd5
{[%clk 0:01:57.8]} 20. Nc4 {[%clk 0:01:34.4]} 20... Nb6 {[%clk 0:01:50.9]} 21.
Be3 {[%clk 0:01:15.1]} 21... Bb7 {[%clk 0:01:44.1]} 22. Nxb6 {[%clk 0:01:05.1]}
22... Qxb6 {[%clk 0:01:43.2]} 23. b4 {[%clk 0:01:05.8]} 23... Nd4 {[%clk
0:01:41.1]} 24. bxc5 {[%clk 0:00:53.7]} 24... Nxf3+ {[%clk 0:01:40.4]} 25. gxf3
{[%clk 0:00:52.7]} 25... Qc6 {[%clk 0:01:40.9]} 26. Be2 {[%clk 0:00:20.5]} 26...
dxe5 {[%clk 0:01:35.8]} 27. fxe5 {[%clk 0:00:18.5]} 27... Bxe5 {[%clk
0:01:35.2]} 28. Ra2 {[%clk 0:00:18.7]} 28... Kh8 {[%clk 0:01:20.7]} 29. Qf5
{[%clk 0:00:17.9]} 29... Rg8+ {[%clk 0:01:15.7]} 30. Kh1 {[%clk 0:00:17.9]}
30... Bc3 {[%clk 0:01:06.1]} 31. Rb1 {[%clk 0:00:15.2]} 31... Bc8 {[%clk
0:00:46.1]} 32. Qxf7 {[%clk 0:00:14.3]} 32... Be6 {[%clk 0:00:44.9]} 33. Qh5
{[%clk 0:00:10.8]} 33... Bxa2 {[%clk 0:00:44.9]} 34. Rb6 {[%clk 0:00:11.3]}
34... Rg6 {[%clk 0:00:22.8]} 35. Rxc6 {[%clk 0:00:10]} 35... Rxc6 {[%clk
0:00:22.9]} 36. Bxh6 {[%clk 0:00:10]} 36... Kg8 {[%clk 0:00:13]} 37. Qg4+ {[%clk
0:00:07.4]} 37... Kf7 {[%clk 0:00:11.9]} 38. Bc4+ {[%clk 0:00:06.4]} 38... Bxc4
{[%clk 0:00:12]} 39. Qxc4+ {[%clk 0:00:07.3]} 39... Ke8 {[%clk 0:00:08.1]} 40.
Qg8+ {[%clk 0:00:07]} 40... Kd7 {[%clk 0:00:08.4]} 41. Qxa8 {[%clk 0:00:07.9]}
41... Rxh6 {[%clk 0:00:09.1]} 42. Qb7+ {[%clk 0:00:07.5]} 42... Kd8 {[%clk
0:00:07.2]} 43. c6 {[%clk 0:00:07.8]} 43... Be5 {[%clk 0:00:07.2]} 44. Qd7#
{[%clk 0:00:06.7]} 1-0

[Event "*** Titled Tuesday Blitz"]
[Site "Chess.com"]
[Date "2020.05.12"]
[Round "6"]
[White "Rodchenkov_Vitalij"]
[Black "praveenb2002"]
[Result "0-1"]
[WhiteElo "2433"]
[BlackElo "2712"]
[TimeControl "180+1"]
[EndTime "11:06:43 PDT"]
[Termination "praveenb2002 won on time"]

1. d4 {[%clk 0:02:57]} 1... d5 {[%clk 0:03:00]} 2. c4 {[%clk 0:02:55.7]} 2... c6
{[%clk 0:03:00]} 3. Nf3 {[%clk 0:02:54]} 3... Nf6 {[%clk 0:03:00.3]} 4. e3
{[%clk 0:02:52.1]} 4... Bf5 {[%clk 0:02:59.9]} 5. Nc3 {[%clk 0:02:50.6]} 5... e6
{[%clk 0:02:59.6]} 6. Nh4 {[%clk 0:02:48.2]} 6... Be4 {[%clk 0:02:59.8]} 7. f3
{[%clk 0:02:46.9]} 7... Bg6 {[%clk 0:03:00.1]} 8. Qb3 {[%clk 0:02:45]} 8... Qc7
{[%clk 0:03:00.6]} 9. Bd2 {[%clk 0:02:41.4]} 9... Nbd7 {[%clk 0:03:00.8]} 10.
cxd5 {[%clk 0:02:38.9]} 10... exd5 {[%clk 0:02:56.5]} 11. O-O-O {[%clk 0:02:34]}
11... Bd6 {[%clk 0:02:49.2]} 12. Nxg6 {[%clk 0:02:18.5]} 12... hxg6 {[%clk
0:02:49]} 13. Bd3 {[%clk 0:02:16.2]} 13... Rxh2 {[%clk 0:02:42.7]} 14. Rxh2
{[%clk 0:02:12.1]} 14... Bxh2 {[%clk 0:02:43.6]} 15. e4 {[%clk 0:02:11.6]} 15...
O-O-O {[%clk 0:02:33.7]} 16. e5 {[%clk 0:01:59.2]} 16... Nh5 {[%clk 0:02:32.4]}
17. Kb1 {[%clk 0:01:47.6]} 17... Qb6 {[%clk 0:02:25.8]} 18. Qxb6 {[%clk
0:01:39.5]} 18... Nxb6 {[%clk 0:02:25.3]} 19. Rh1 {[%clk 0:01:38]} 19... Bf4
{[%clk 0:02:24.1]} 20. Kc2 {[%clk 0:01:26.5]} 20... Bxd2 {[%clk 0:02:21.3]} 21.
Kxd2 {[%clk 0:01:25.4]} 21... Nf4 {[%clk 0:02:22]} 22. Rh7 {[%clk 0:01:20.4]}
22... Ne6 {[%clk 0:02:20.5]} 23. Ne2 {[%clk 0:01:18.5]} 23... Nd7 {[%clk
0:02:15.2]} 24. b4 {[%clk 0:01:10.9]} 24... b6 {[%clk 0:02:12.4]} 25. Rh1 {[%clk
0:01:07.5]} 25... Kb7 {[%clk 0:02:11.7]} 26. a4 {[%clk 0:00:56.7]} 26... c5
{[%clk 0:02:07.1]} 27. bxc5 {[%clk 0:00:55.3]} 27... bxc5 {[%clk 0:02:06.7]} 28.
Rb1+ {[%clk 0:00:55.1]} 28... Kc7 {[%clk 0:02:05.5]} 29. Nc3 {[%clk 0:00:36.3]}
29... Nb6 {[%clk 0:01:45.3]} 30. a5 {[%clk 0:00:27.6]} 30... Nc8 {[%clk
0:01:35.9]} 31. Ba6 {[%clk 0:00:22]} 31... cxd4 {[%clk 0:01:28.9]} 32. Rb7+
{[%clk 0:00:20.2]} 32... Kc6 {[%clk 0:01:29.3]} 33. Na2 {[%clk 0:00:15.8]} 33...
d3 {[%clk 0:00:33.8]} 34. Nb4+ {[%clk 0:00:13.7]} 34... Kc5 {[%clk 0:00:34.1]}
35. Nxd3+ {[%clk 0:00:12.2]} 35... Kc6 {[%clk 0:00:33.6]} 36. Nb4+ {[%clk
0:00:11.7]} 36... Kc5 {[%clk 0:00:34.1]} 37. Rb5+ {[%clk 0:00:10.6]} 37... Kc4
{[%clk 0:00:28.5]} 38. Rb7+ {[%clk 0:00:07.2]} 38... Kc5 {[%clk 0:00:18.5]} 39.
Kd3 {[%clk 0:00:07.6]} 39... Nf4+ {[%clk 0:00:14.8]} 40. Kc3 {[%clk 0:00:06.1]}
40... d4+ {[%clk 0:00:14.9]} 41. Kb3 {[%clk 0:00:06.2]} 41... d3 {[%clk
0:00:14.9]} 42. Rc7+ {[%clk 0:00:05.4]} 42... Kd4 {[%clk 0:00:12.9]} 43. Nc6+
{[%clk 0:00:05.5]} 43... Ke3 {[%clk 0:00:13.1]} 44. Nxd8 {[%clk 0:00:05.6]}
44... d2 {[%clk 0:00:13.5]} 45. Rd7 {[%clk 0:00:04.4]} 45... Ne7 {[%clk
0:00:13.8]} 46. Nb7 {[%clk 0:00:01.5]} 46... Ned5 {[%clk 0:00:13.9]} 0-1

[Event "*** Titled Tuesday Blitz"]
[Site "Chess.com"]
[Date "2020.05.12"]
[Round "6"]
[White "BlackWidow515"]
[Black "Camels1981"]
[Result "0-1"]
[WhiteElo "2123"]
[BlackElo "2292"]
[TimeControl "180+1"]
[EndTime "11:06:43 PDT"]
[Termination "Camels1981 won by checkmate"]

1. e4 {[%clk 0:03:00]} 1... c5 {[%clk 0:02:58.9]} 2. Nf3 {[%clk 0:03:00.2]} 2...
d6 {[%clk 0:02:54.9]} 3. d4 {[%clk 0:02:59.6]} 3... cxd4 {[%clk 0:02:55.2]} 4.
Nxd4 {[%clk 0:03:00]} 4... Nf6 {[%clk 0:02:56]} 5. Nc3 {[%clk 0:02:59.7]} 5...
a6 {[%clk 0:02:56.3]} 6. Be2 {[%clk 0:03:00.1]} 6... e6 {[%clk 0:02:54.4]} 7.
Be3 {[%clk 0:02:59.8]} 7... Be7 {[%clk 0:02:54.8]} 8. O-O {[%clk 0:02:59.8]}
8... O-O {[%clk 0:02:55.2]} 9. h3 {[%clk 0:02:57.8]} 9... Qc7 {[%clk 0:02:55.1]}
10. Qd2 {[%clk 0:02:58.1]} 10... Nc6 {[%clk 0:02:53]} 11. a4 {[%clk 0:02:55.8]}
11... Bd7 {[%clk 0:02:51.9]} 12. f4 {[%clk 0:02:51.8]} 12... Nxd4 {[%clk
0:02:51.2]} 13. Bxd4 {[%clk 0:02:50.7]} 13... Bc6 {[%clk 0:02:52.1]} 14. e5
{[%clk 0:02:38.3]} 14... dxe5 {[%clk 0:02:49.3]} 15. Bxe5 {[%clk 0:02:36.6]}
15... Qb6+ {[%clk 0:02:49.2]} 16. Kh1 {[%clk 0:02:36.5]} 16... Rad8 {[%clk
0:02:48.2]} 17. Bd3 {[%clk 0:02:32.8]} 17... Nd5 {[%clk 0:02:45.4]} 18. a5
{[%clk 0:02:18.6]} 18... Qe3 {[%clk 0:02:44.5]} 19. Rad1 {[%clk 0:01:49.7]}
19... Qxd2 {[%clk 0:02:42.5]} 20. Rxd2 {[%clk 0:01:49.4]} 20... Ne3 {[%clk
0:02:42]} 21. Rff2 {[%clk 0:01:37.7]} 21... Bb4 {[%clk 0:02:32.6]} 22. Bc7
{[%clk 0:01:35.8]} 22... Rd7 {[%clk 0:02:30.6]} 23. Bb6 {[%clk 0:01:35.7]} 23...
Nd5 {[%clk 0:02:27]} 24. Be4 {[%clk 0:00:58.3]} 24... Nxb6 {[%clk 0:02:06.2]}
25. Bxc6 {[%clk 0:00:44.5]} 25... Rxd2 {[%clk 0:01:54.6]} 26. Rxd2 {[%clk
0:00:43.4]} 26... Bxc3 {[%clk 0:01:50.9]} 27. bxc3 {[%clk 0:00:40.3]} 27... Nc4
{[%clk 0:01:50.8]} 28. Rd4 {[%clk 0:00:33.9]} 28... Nxa5 {[%clk 0:01:50.4]} 29.
Bf3 {[%clk 0:00:32.3]} 29... Rb8 {[%clk 0:01:44.6]} 30. Ra4 {[%clk 0:00:23.7]}
30... b6 {[%clk 0:01:41.8]} 31. c4 {[%clk 0:00:17.5]} 31... Rc8 {[%clk
0:01:32.3]} 32. Be2 {[%clk 0:00:16.2]} 32... Rc5 {[%clk 0:01:31.5]} 33. Rb4
{[%clk 0:00:16.2]} 33... Rc6 {[%clk 0:01:29.4]} 34. g3 {[%clk 0:00:16.2]} 34...
Kf8 {[%clk 0:01:28.1]} 35. Bf3 {[%clk 0:00:16.3]} 35... Rd6 {[%clk 0:01:27.1]}
36. Kg2 {[%clk 0:00:15.8]} 36... Ke7 {[%clk 0:01:26]} 37. Ra4 {[%clk 0:00:15.5]}
37... Rd2+ {[%clk 0:01:24.4]} 38. Kf1 {[%clk 0:00:15.7]} 38... Rxc2 {[%clk
0:01:24.3]} 39. h4 {[%clk 0:00:16]} 39... Rxc4 {[%clk 0:01:22.6]} 40. Ra2 {[%clk
0:00:16.3]} 40... Kd6 {[%clk 0:01:21.3]} 41. Be2 {[%clk 0:00:16.6]} 41... Rc3
{[%clk 0:01:18.7]} 42. Kf2 {[%clk 0:00:17.1]} 42... Nc6 {[%clk 0:01:15.4]} 43.
Rxa6 {[%clk 0:00:15.7]} 43... Rb3 {[%clk 0:01:12.2]} 44. Ra8 {[%clk 0:00:14.5]}
44... g6 {[%clk 0:01:10]} 45. g4 {[%clk 0:00:12.1]} 45... Nd4 {[%clk 0:01:07.6]}
46. Rd8+ {[%clk 0:00:09.6]} 46... Kc5 {[%clk 0:01:06.7]} 47. Rc8+ {[%clk
0:00:10.2]} 47... Kd5 {[%clk 0:01:06.6]} 48. Rd8+ {[%clk 0:00:10.2]} 48... Ke4
{[%clk 0:01:06.2]} 49. f5 {[%clk 0:00:08.5]} 49... gxf5 {[%clk 0:01:04.2]} 50.
g5 {[%clk 0:00:09]} 50... Rb2 {[%clk 0:01:03.9]} 51. Kf1 {[%clk 0:00:08.9]}
51... Nxe2 {[%clk 0:01:02.8]} 52. h5 {[%clk 0:00:08.5]} 52... Ng3+ {[%clk
0:01:01]} 53. Kg1 {[%clk 0:00:09.1]} 53... Kf3 {[%clk 0:01:00.9]} 54. g6 {[%clk
0:00:07.5]} 54... Rg2# {[%clk 0:00:59.4]} 0-1